fUST/lending_fUST_20250614
["ID","MTS","AMOUNT","RATE_DAILY","PERIOD"]
[365701317,1749834647762,-500.0,0.00023156,2]
[365701318,1749834647772,-3000.0,0.0002316,2]
[365701319,1749834647781,-3000.0,0.0002317,2]
[365701320,1749834647790,-151.0,0.0002317,7]
[365701321,1749834647800,-153.129015,0.0002317,7]
[365701322,1749834647809,-153.129015,0.0002317,7]
[365701323,1749834647819,-2243.0,0.00023172,7]
[365701324,1749834647829,-3000.0,0.0002318,2]
[365701325,1749834647839,-3000.0,0.0002319,2]
[365701326,1749834647848,-416857.44354909,0.000232,5]
[365701327,1749834647901,-249.993024,0.00021368,4]
[365701328,1749834647950,-180.006976,0.00021368,4]
[365701329,1749834647959,-110225.19367453,0.000232,5]
[365701330,1749834647969,-3710.201932,0.000232,2]
[365701331,1749834647978,-151.0,0.000232,7]
[365701332,1749834647988,-154.881614,0.000232,7]
[365701333,1749834647996,-154.881614,0.000232,7]
[365701334,1749834648006,-175.885823,0.000232,7]
[365701335,1749834648015,-175.885823,0.000232,7]
[365701336,1749834648024,-151.000001,0.000232,7]
[365701337,1749834648034,-151.0,0.000232,7]
[365701338,1749834648043,-151.0,0.000232,7]
[365701339,1749834648052,-641.0,0.000232,2]
[365701340,1749834648061,-38230.1664045,0.000232,7]
[365701341,1749834648070,-151.0,0.000232,7]
[365701342,1749834648079,-199.32678703,0.00023202,2]
[365701343,1749834648088,-342.0,0.00023237,2]
[365701344,1749834648097,-151.0,0.0002324,7]
[365701345,1749834648107,-151.0,0.0002324,7]
[365701346,1749834648117,-151.0,0.0002324,7]
[365701347,1749834648127,-151.0,0.0002324,7]
[365701348,1749834648137,-151.0,0.0002324,7]
[365701349,1749834648146,-326.362679,0.0002324,7]
[365701350,1749834648156,-326.362679,0.0002324,7]
[365701351,1749834648165,-153.183717,0.0002324,7]
[365701352,1749834648175,-742.14,0.00023244,4]
[365701353,1749834648185,-439.84863068,0.00023245,8]
[365701354,1749834648195,-160.0,0.00023259,5]
[365701355,1749834648204,-2243.0,0.00023276,7]
[365701356,1749834648213,-322.32400716,0.00023286,2]
[365701357,1749834648222,-460.0,0.00023287,4]
[365701358,1749834648232,-511.84,0.00023287,2]
[365701359,1749834648242,-460.0,0.00023287,4]
[365701360,1749834648252,-460.0,0.00023287,4]
[365701361,1749834648262,-460.0,0.00023287,4]
[365701362,1749834648273,-2608.35,0.00023287,4]
[365701363,1749834648283,-1186.96,0.00023287,4]
[365701364,1749834648293,-151.0,0.00023287,7]
[365701365,1749834648304,-460.0,0.00023287,4]
[365701366,1749834648314,-151.0,0.00023287,7]
[365701367,1749834648324,-460.0,0.00023287,4]
[365701368,1749834648334,-2258.13,0.00023287,4]
[365701369,1749834648344,-192.64650437,0.00023287,4]
[365701370,1749834648353,-460.0,0.00023287,4]
[365701371,1749834648363,-572.84,0.00023287,4]
[365701372,1749834648373,-256.145566,0.00023287,7]
[365701373,1749834648382,-256.145566,0.00023287,7]
[365701374,1749834648392,-151.0,0.00023287,7]
[365701375,1749834648401,-2143.51,0.00023287,4]
[365701376,1749834648411,-460.0,0.00023287,4]
[365701377,1749834648421,-476.29,0.00023287,4]
[365701378,1749834648430,-365.855373,0.00023287,7]
[365701379,1749834648440,-842.03,0.00023287,4]
[365701380,1749834648449,-365.855373,0.00023287,7]
[365701381,1749834648459,-460.0,0.00023287,4]
[365701382,1749834648469,-1691.22,0.00023287,4]
[365701383,1749834648479,-478.0,0.00023287,4]
[365701384,1749834648489,-460.0,0.00023287,4]
[365701385,1749834648499,-460.0,0.00023287,4]
[365701386,1749834648510,-460.0,0.00023287,4]
[365701387,1749834648519,-1102.01,0.00023287,4]
[365701388,1749834648529,-808.18,0.00023287,4]
[365701389,1749834648540,-1805.7,0.00023287,4]
[365701390,1749834648550,-3963.42,0.00023287,4]
[365701391,1749834648562,-534.73,0.00023287,4]
[365701392,1749834648572,-1663.93,0.00023287,4]
[365701393,1749834648583,-460.0,0.00023287,4]
[365701394,1749834648593,-436.81265577,0.00023287,4]
[365701395,1749834648603,-613.46,0.00023287,4]
[365701396,1749834648612,-460.0,0.00023287,4]
[365701397,1749834648622,-2088.19,0.00023287,4]
[365701398,1749834648632,-3000.0,0.000233,2]
[365701399,1749834648643,-160.0,0.000233,3]
[365701400,1749834648653,-3000.0,0.0002331,2]
[365701401,1749834648668,-166.50369972,0.00023315,2]
[365701402,1749834648684,-3000.0,0.0002332,2]
[365701403,1749834648693,-151.0,0.0002332,7]
[365701404,1749834648704,-151.0,0.0002332,7]
[365701405,1749834648714,-3000.0,0.0002333,2]
[365701406,1749834648724,-3168.943934,0.0002333,2]
[365701407,1749834648734,-3168.943934,0.0002333,2]
[365701408,1749834648745,-611.854662,0.0002333,7]
[365701409,1749834648755,-611.854662,0.0002333,7]
[365701410,1749834648765,-3000.0,0.0002334,2]
[365701411,1749834648775,-742.14,0.00023344,3]
[365701412,1749834648787,-151.0,0.00023347,7]
[365701413,1749834648796,-154.881614,0.00023347,7]
[365701414,1749834648806,-154.881614,0.00023347,7]
[365701415,1749834648816,-175.885823,0.00023347,7]
[365701416,1749834648825,-175.885823,0.00023347,7]
[365701417,1749834648837,-151.0,0.00023347,7]
[365701418,1749834648846,-151.0,0.00023347,7]
[365701419,1749834648856,-439.84863068,0.00023348,9]
[365701420,1749834648866,-3000.0,0.0002335,2]
[365701421,1749834648875,-3000.0,0.0002336,2]
[365701422,1749834648885,-151.0,0.0002336,7]
[365701423,1749834648894,-153.129015,0.0002336,7]
[365701424,1749834648904,-153.129015,0.0002336,7]
[365701425,1749834648913,-3000.0,0.0002337,2]
[365701426,1749834648922,-150.341,0.00023371,2]
[365701427,1749834648932,-3000.0,0.0002338,2]
[365701428,1749834648940,-2243.0,0.00023381,7]
[365701429,1749834648950,-3000.0,0.0002339,2]
[365701430,1749834648959,-3000.0,0.000234,2]
[365701431,1749834648968,-424.32678023,0.000234,3]
[365701432,1749834648978,-12531.02669373,0.000234,3]
[365701433,1749834648988,-160.0,0.000234,3]
[365701434,1749834648997,-3000.0,0.0002341,2]
[365701435,1749834649007,-3000.0,0.0002342,2]
[365701436,1749834649018,-2000.0,0.00023422,2]
[365701437,1749834649029,-3000.0,0.0002343,2]
[365701438,1749834649040,-1395.65,0.00023432,2]
[365701439,1749834649050,-3000.0,0.0002344,2]
[365701440,1749834649060,-151.0,0.0002344,7]
[365701441,1749834649069,-326.362679,0.0002344,7]
[365701442,1749834649079,-326.362679,0.0002344,7]
[365701443,1749834649089,-742.14,0.00023444,2]
[365701444,1749834649099,-3000.0,0.0002345,2]
[365701445,1749834649109,-439.84863068,0.00023452,9]
[365701446,1749834649119,-3000.0,0.0002346,2]
[365701447,1749834649129,-173.9379647,0.00023461,4]
[365701448,1749834649139,-173.9379647,0.00023461,4]
[365701449,1749834649148,-173.9379647,0.00023461,4]
[365701450,1749834649158,-173.93,0.00023461,4]
[365701451,1749834649168,-162.34210038,0.00023461,4]
[365701452,1749834649177,-162.34210038,0.00023461,4]
[365701453,1749834649187,-162.34210038,0.00023461,4]
[365701454,1749834649197,-162.34210038,0.00023461,4]
[365701455,1749834649207,-162.34210038,0.00023461,4]
[365701456,1749834649217,-162.34210038,0.00023461,4]
[365701457,1749834649227,-162.34210038,0.00023461,4]
[365701458,1749834649237,-162.34210038,0.00023461,4]
[365701459,1749834649247,-162.34210038,0.00023461,4]
[365701460,1749834649257,-3000.0,0.0002347,2]
[365701461,1749834649267,-3000.0,0.0002348,2]
[365701462,1749834649276,-2243.0,0.00023486,7]
[365701463,1749834649287,-3000.0,0.0002349,2]
[365701464,1749834649297,-3000.0,0.000235,2]
[365701465,1749834649306,-5426.0,0.000235,2]
[365701466,1749834649316,-5426.0,0.000235,2]
[365701467,1749834649326,-5426.0,0.000235,2]
[365701468,1749834649335,-5426.0,0.000235,2]
[365701469,1749834649345,-5426.0,0.000235,2]
[365701470,1749834649456,-5426.0,0.000235,2]
[365701471,1749834649467,-161.342262,0.000235,7]
[365701472,1749834649477,-151.0,0.000235,7]
[365701473,1749834649486,-151.0,0.000235,7]
[365701474,1749834649496,-151.0,0.000235,7]
[365701475,1749834649506,-151.0,0.000235,5]
[365701476,1749834649515,-151.498,0.00023509,2]
[365701477,1749834649524,-250.0,0.00023509,2]
[365701478,1749834649534,-244.659,0.00023509,2]
[365701479,1749834649544,-150.568,0.00023509,2]
[365701480,1749834649554,-258.376,0.00023509,2]
[365701481,1749834649564,-215.56,0.00023509,2]
[365701482,1749834649573,-964.0,0.00023509,2]
[365701483,1749834649582,-2160.0,0.00023509,2]
[365701484,1749834649591,-653.0,0.00023509,2]
[365701485,1749834649602,-3000.0,0.0002351,2]
[365701486,1749834649611,-3000.0,0.0002352,2]
[365701487,1749834649620,-501.89008847,0.00023521,2]
[365701488,1749834649630,-1000.0,0.00023521,2]
[365701489,1749834649640,-1000.0,0.00023521,2]
[365701490,1749834649649,-1005.00855098,0.00023521,2]
[365701491,1749834649660,-1000.0,0.00023521,2]
[365701492,1749834649671,-1000.0,0.00023521,2]
[365701493,1749834649681,-1000.0,0.00023521,2]
[365701494,1749834649691,-1000.0,0.00023521,2]
[365701495,1749834649700,-501.04561365,0.00023521,2]
[365701496,1749834649710,-1000.0,0.00023521,2]
[365701497,1749834649720,-1000.0,0.00023521,2]
[365701498,1749834649730,-1200.0,0.00023521,2]
[365701499,1749834649741,-1000.0,0.00023521,2]
[365701500,1749834649751,-310.26841365,0.00023521,2]
[365701501,1749834649760,-1000.0,0.00023521,2]
[365701502,1749834649770,-151.0,0.00023521,7]
[365701503,1749834649780,-256.145566,0.00023521,7]
[365701504,1749834649793,-256.145566,0.00023521,7]
[365701505,1749834649802,-151.0,0.00023521,7]
[365701506,1749834649812,-3000.0,0.0002353,2]
[365701507,1749834649821,-5000.0,0.00023534,2]
[365701508,1749834649831,-3000.0,0.0002354,2]
[365701509,1749834649841,-742.14,0.00023544,5]
[365701510,1749834649851,-3000.0,0.0002355,2]
[365701511,1749834649860,-151.0,0.0002355,7]
[365701512,1749834649870,-151.0,0.0002355,7]
[365701513,1749834649880,-365.855373,0.0002355,7]
[365701514,1749834649889,-365.855373,0.0002355,7]
[365701515,1749834649900,-439.84863068,0.00023555,9]
[365701516,1749834649909,-3000.0,0.0002356,2]
[365701517,1749834649919,-200.0,0.00023561,4]
[365701518,1749834649928,-200.0,0.00023561,4]
[365701519,1749834649938,-200.0,0.00023561,4]
[365701520,1749834649947,-200.0,0.00023561,4]
[365701521,1749834649957,-200.0,0.00023561,4]
[365701522,1749834649966,-200.0,0.00023561,4]
[365701523,1749834649975,-200.0,0.00023561,4]
[365701524,1749834649985,-200.0,0.00023561,4]
[365701525,1749834649994,-460.0,0.00023561,4]
[365701526,1749834650004,-151.0,0.00023561,7]
[365701527,1749834650013,-511.84,0.00023561,2]
[365701528,1749834650023,-460.0,0.00023561,4]
[365701529,1749834650035,-154.881614,0.00023561,7]
[365701530,1749834650045,-154.881614,0.00023561,7]
[365701531,1749834650055,-175.885823,0.00023561,7]
[365701532,1749834650065,-175.885823,0.00023561,7]
[365701533,1749834650075,-151.0,0.00023561,7]
[365701534,1749834650085,-460.0,0.00023561,4]
[365701535,1749834650095,-151.0,0.00023561,7]
[365701536,1749834650105,-272.10696,0.00023561,7]
[365701537,1749834650115,-3168.943934,0.00023561,2]
[365701538,1749834650124,-3168.943934,0.00023561,2]
[365701539,1749834650134,-151.0,0.00023561,7]
[365701540,1749834650144,-213.844795,0.00023561,7]
[365701541,1749834650154,-460.0,0.00023561,4]
[365701542,1749834650163,-2608.35,0.00023561,4]
[365701543,1749834650173,-611.854662,0.00023561,7]
[365701544,1749834650182,-611.854662,0.00023561,7]
[365701545,1749834650191,-1186.96,0.00023561,4]
[365701546,1749834650201,-153.129015,0.00023561,7]
[365701547,1749834650211,-153.129015,0.00023561,7]
[365701548,1749834650220,-460.0,0.00023561,4]
[365701549,1749834650230,-249.86,0.00023561,4]
[365701550,1749834650239,-2258.13,0.00023561,4]
[365701551,1749834650250,-460.0,0.00023561,4]
[365701552,1749834650260,-572.84,0.00023561,4]
[365701553,1749834650269,-2143.51,0.00023561,4]
[365701554,1749834650279,-460.0,0.00023561,4]
[365701555,1749834650290,-476.29,0.00023561,4]
[365701556,1749834650299,-842.03,0.00023561,4]
[365701557,1749834650308,-460.0,0.00023561,4]
[365701558,1749834650318,-1691.22,0.00023561,4]
[365701559,1749834650327,-478.0,0.00023561,4]
[365701560,1749834650336,-460.0,0.00023561,4]
[365701561,1749834650346,-517.8,0.00023561,4]
[365701562,1749834650355,-460.0,0.00023561,4]
[365701563,1749834650365,-1102.01,0.00023561,4]
[365701564,1749834650375,-808.18,0.00023561,4]
[365701565,1749834650384,-1805.7,0.00023561,4]
[365701566,1749834650393,-3963.42,0.00023561,4]
[365701567,1749834650403,-534.73,0.00023561,4]
[365701568,1749834650413,-1663.93,0.00023561,4]
[365701569,1749834650423,-460.0,0.00023561,4]
[365701570,1749834650432,-613.46,0.00023561,4]
[365701571,1749834650442,-339.51541226,0.00023561,4]
[365701572,1749834650451,-2088.19,0.00023561,4]
[365701573,1749834650461,-3000.0,0.0002357,2]
[365701574,1749834650471,-3000.0,0.0002358,2]
[365701575,1749834650480,-3000.0,0.0002359,2]
[365701576,1749834650490,-156.747823,0.0002359,7]
[365701577,1749834650498,-151.0,0.0002359,7]
[365701578,1749834650508,-151.0,0.0002359,7]
[365701579,1749834650518,-151.0,0.0002359,7]
[365701580,1749834650528,-151.0,0.0002359,7]
[365701581,1749834650538,-192.134334,0.0002359,7]
[365701582,1749834650547,-192.134334,0.0002359,7]
[365701583,1749834650557,-2243.0,0.00023591,7]
[365701584,1749834650567,-2000.0,0.000236,2]
[365701585,1749834650577,-3000.0,0.000236,2]
[365701586,1749834650586,-151.0,0.000236,8]
[365701587,1749834650595,-151.0,0.000236,7]
[365701588,1749834650605,-151.0,0.000236,7]
[365701589,1749834650614,-151.0,0.000236,7]
[365701590,1749834650623,-151.0,0.000236,7]
[365701591,1749834650634,-151.0,0.000236,7]
[365701592,1749834650643,-545.0,0.00023601,2]
[365701593,1749834650653,-3000.0,0.0002361,2]
[365701594,1749834650665,-166.50369972,0.00023616,2]
[365701595,1749834650675,-3000.0,0.0002362,2]
[365701596,1749834650685,-3000.0,0.0002363,2]
[365701597,1749834650694,-151.0,0.0002363,7]
[365701598,1749834650706,-326.362679,0.0002363,7]
[365701599,1749834650716,-326.362679,0.0002363,7]
[365701600,1749834650726,-3000.0,0.0002364,2]
[365701601,1749834650737,-742.14,0.00023644,7]
[365701602,1749834650748,-3000.0,0.0002365,2]
[365701603,1749834650758,-439.84863068,0.00023659,9]
[365701604,1749834650767,-3000.0,0.0002366,2]
[365701605,1749834650777,-3000.0,0.0002367,2]
[365701606,1749834650790,-3000.0,0.0002368,2]
[365701607,1749834650800,-151.0,0.0002368,7]
[365701608,1749834650810,-151.0,0.0002368,7]
[365701609,1749834650820,-225.688504,0.0002368,7]
[365701610,1749834650831,-6888.13748271,0.0002368,2]
[365701611,1749834650841,-167.40932512,0.0002368,2]
[365701612,1749834650851,-162.34,0.0002368,4]
[365701613,1749834650862,-3000.0,0.0002369,2]
[365701614,1749834650872,-545.0,0.00023694,2]
[365701615,1749834650882,-2243.0,0.00023695,7]
[365701616,1749834650891,-3000.0,0.000237,2]
[365701617,1749834650901,-3000.0,0.0002371,2]
[365701618,1749834650911,-3000.0,0.0002372,2]
[365701619,1749834650920,-800.0,0.00023723,2]
[365701620,1749834650930,-5032.0,0.0002373,2]
[365701621,1749834650939,-3000.0,0.0002373,2]
[365701622,1749834650948,-4166.00833,0.0002374,2]
[365701623,1749834650958,-742.14,0.00023744,7]
[365701624,1749834650968,-199.32678703,0.00023754,2]
[365701625,1749834650977,-439.84863068,0.00023762,9]
[365701626,1749834650987,-150.0,0.00023773,2]
[365701627,1749834650996,-237.0,0.00023778,2]
[365701628,1749834651006,-10736.12743952,0.0002378,7]
[365701629,1749834651016,-4421.81028863,0.0002378,7]
[365701630,1749834651026,-239851.55788986,0.0002378,5]
[365701631,1749834651038,-601.72777977,0.0002378,2]
[365701632,1749834651047,-439874.64847194,0.0002378,5]
[365701633,1749834651057,-151.0,0.0002378,7]
[365701634,1749834651066,-151.0,0.0002378,7]
[365701635,1749834651076,-151.0,0.0002378,7]
[365701636,1749834651086,-151.0,0.0002378,7]
[365701637,1749834651095,-151.0,0.0002378,7]
[365701638,1749834651105,-151.0,0.0002378,7]
[365701639,1749834651114,-326.362679,0.0002378,7]
[365701640,1749834651124,-326.362679,0.0002378,7]
[365701641,1749834651133,-326.362679,0.0002378,7]
[365701642,1749834651142,-326.362679,0.0002378,7]
[365701643,1749834651151,-154.881614,0.0002378,7]
[365701644,1749834651160,-154.881614,0.0002378,7]
[365701645,1749834651170,-154.881614,0.0002378,7]
[365701646,1749834651180,-154.881614,0.0002378,7]
[365701647,1749834651190,-175.885823,0.0002378,7]
[365701648,1749834651199,-175.885823,0.0002378,7]
[365701649,1749834651208,-175.885823,0.0002378,7]
[365701650,1749834651217,-175.885823,0.0002378,7]
[365701651,1749834651227,-151.0,0.0002378,7]
[365701652,1749834651236,-151.0,0.0002378,7]
[365701653,1749834651245,-151.0,0.0002378,7]
[365701654,1749834651254,-151.0,0.0002378,7]
[365701655,1749834651263,-3168.943934,0.0002378,2]
[365701656,1749834651272,-3168.943934,0.0002378,2]
[365701657,1749834651282,-3168.943934,0.0002378,2]
[365701658,1749834651292,-3168.943934,0.0002378,2]
[365701659,1749834651301,-151.0,0.0002378,7]
[365701660,1749834651310,-151.0,0.0002378,7]
[365701661,1749834651320,-611.854662,0.0002378,7]
[365701662,1749834651329,-611.854662,0.0002378,7]
[365701663,1749834651338,-611.854662,0.0002378,7]
[365701664,1749834651347,-611.854662,0.0002378,7]
[365701665,1749834651356,-153.129015,0.0002378,7]
[365701666,1749834651365,-153.129015,0.0002378,7]
[365701667,1749834651375,-153.129015,0.0002378,7]
[365701668,1749834651384,-153.129015,0.0002378,7]
[365701669,1749834651394,-151.0,0.0002378,7]
[365701670,1749834651403,-151.0,0.0002378,7]
[365701671,1749834651412,-151.0,0.0002378,7]
[365701672,1749834651422,-151.0,0.0002378,7]
[365701673,1749834651431,-256.145566,0.0002378,7]
[365701674,1749834651440,-256.145566,0.0002378,7]
[365701675,1749834651450,-256.145566,0.0002378,7]
[365701676,1749834651459,-256.145566,0.0002378,7]
[365701677,1749834651469,-365.855373,0.0002378,7]
[365701678,1749834651478,-365.855373,0.0002378,7]
[365701679,1749834651487,-151.0,0.0002378,7]
[365701680,1749834651496,-365.855373,0.0002378,7]
[365701681,1749834651505,-151.0,0.0002378,7]
[365701682,1749834651515,-365.855373,0.0002378,7]
[365701683,1749834651524,-365.855373,0.0002378,7]
[365701684,1749834651533,-153.057035,0.0002378,7]
[365701685,1749834651543,-365.855373,0.0002378,7]
[365701686,1749834651553,-151.0,0.0002378,7]
[365701687,1749834651563,-244.845925,0.0002378,7]
[365701688,1749834651572,-151.0,0.0002378,7]
[365701689,1749834651581,-151.0,0.0002378,7]
[365701690,1749834651591,-192.134334,0.0002378,7]
[365701691,1749834651600,-192.134334,0.0002378,7]
[365701692,1749834651610,-192.134334,0.0002378,7]
[365701693,1749834651620,-192.134334,0.0002378,7]
[365701694,1749834651629,-151.0,0.0002378,7]
[365701695,1749834651639,-151.0,0.0002378,7]
[365701696,1749834651649,-151.0,0.0002378,7]
[365701697,1749834651662,-151.0,0.0002378,7]
[365701698,1749834651672,-151.0,0.0002378,7]
[365701699,1749834651682,-151.0,0.0002378,7]
[365701700,1749834651692,-151.0,0.0002378,7]
[365701701,1749834651702,-151.0,0.0002378,7]
[365701702,1749834651712,-151.0,0.0002378,7]
[365701703,1749834651721,-151.0,0.0002378,7]
[365701704,1749834651730,-501.46120462,0.0002378,9]
[365701705,1749834651740,-10942.0351809,0.000238,2]
[365701706,1749834651752,-15558.44885146,0.000238,2]
[365701707,1749834651761,-41181.43651932,0.000238,2]
[365701708,1749834651770,-5205.681806,0.000238,3]
[365701709,1749834651779,-112834.860044,0.000238,5]
[365701710,1749834651790,-273.4,0.000238,2]
[365701711,1749834651799,-2243.0,0.000238,7]
[365701712,1749834651809,-1302.21,0.000238,2]
[365701713,1749834651818,-151.0,0.000238,7]
[365701714,1749834651828,-151.0,0.000238,7]
[365701715,1749834651837,-151.0,0.000238,7]
[365701716,1749834651847,-151.0,0.000238,7]
[365701717,1749834651856,-194.55818,0.000238,7]
[365701718,1749834651865,-326.362679,0.000238,7]
[365701719,1749834651875,-326.362679,0.000238,7]
[365701720,1749834651965,-326.362679,0.000238,7]
[365701721,1749834651986,-326.362673,0.000238,7]
[365701722,1749834651996,-154.881614,0.000238,7]
[365701723,1749834652006,-154.881614,0.000238,7]
[365701724,1749834652016,-154.881614,0.000238,7]
[365701725,1749834652025,-154.881623,0.000238,7]
[365701726,1749834652036,-175.885823,0.000238,7]
[365701727,1749834652045,-175.885823,0.000238,7]
[365701728,1749834652056,-175.885823,0.000238,7]
[365701729,1749834652065,-175.885827,0.000238,7]
[365701730,1749834652075,-151.0,0.000238,7]
[365701731,1749834652085,-151.0,0.000238,7]
[365701732,1749834652094,-151.0,0.000238,7]
[365701733,1749834652104,-151.0,0.000238,7]
[365701734,1749834652114,-3168.943934,0.000238,2]
[365701735,1749834652124,-3168.943934,0.000238,2]
[365701736,1749834652134,-3168.943934,0.000238,2]
[365701737,1749834652143,-3168.94393776,0.000238,2]
[365701738,1749834652153,-150.0,0.000238,30]
[365701739,1749834652163,-160.0,0.000238,3]
[365701740,1749834652173,-151.0,0.000238,7]
[365701741,1749834652182,-151.0,0.000238,7]
[365701742,1749834652192,-611.854662,0.000238,7]
[365701743,1749834652202,-611.854662,0.000238,7]
[365701744,1749834652212,-611.854662,0.000238,7]
[365701745,1749834652221,-611.85466,0.000238,7]
[365701746,1749834652231,-153.129015,0.000238,7]
[365701747,1749834652240,-153.12901,0.000238,7]
[365701748,1749834652250,-151.0,0.000238,7]
[365701749,1749834652260,-151.0,0.000238,7]
[365701750,1749834652270,-835.28007164,0.000238,3]
[365701751,1749834652280,-256.145566,0.000238,7]
[365701752,1749834652290,-256.145566,0.000238,7]
[365701753,1749834652300,-256.145566,0.000238,7]
[365701754,1749834652309,-256.145566,0.000238,7]
[365701755,1749834652319,-229.78555783,0.000238,3]
[365701756,1749834652328,-365.855373,0.000238,7]
[365701757,1749834652338,-159.45211,0.000238,7]
[365701758,1749834652348,-365.855373,0.000238,7]
[365701759,1749834652358,-365.855373,0.000238,7]
[365701760,1749834652368,-365.855373,0.000238,7]
[365701761,1749834652379,-151.0,0.000238,7]
[365701762,1749834652389,-192.134334,0.000238,7]
[365701763,1749834652399,-192.134334,0.000238,7]
[365701764,1749834652408,-424.32678023,0.000238,3]
[365701765,1749834652418,-160.0,0.000238,3]
[365701766,1749834652427,-151.0,0.000238,7]
[365701767,1749834652437,-151.0,0.000238,7]
[365701768,1749834652446,-151.0,0.000238,7]
[365701769,1749834652455,-151.0,0.000238,7]
[365701770,1749834652465,-600.0,0.00023808,2]
[365701771,1749834652474,-6888.13748263,0.00023811,2]
[365701772,1749834652484,-160.0,0.00023834,2]
[365701773,1749834652493,-460.0,0.00023835,4]
[365701774,1749834652503,-511.84,0.00023835,2]
[365701775,1749834652514,-510.60026302,0.00023835,4]
[365701776,1749834652523,-460.0,0.00023835,4]
[365701777,1749834652533,-460.0,0.00023835,4]
[365701778,1749834652544,-2608.35,0.00023835,4]
[365701779,1749834652554,-1186.96,0.00023835,4]
[365701780,1749834652564,-460.0,0.00023835,4]
[365701781,1749834652575,-2258.13,0.00023835,4]
[365701782,1749834652584,-460.0,0.00023835,4]
[365701783,1749834652594,-572.84,0.00023835,4]
[365701784,1749834652603,-2143.51,0.00023835,4]
[365701785,1749834652612,-460.0,0.00023835,4]
[365701786,1749834652621,-476.29,0.00023835,4]
[365701787,1749834652630,-842.03,0.00023835,4]
[365701788,1749834652646,-460.0,0.00023835,4]
[365701789,1749834652668,-1691.22,0.00023835,4]
[365701790,1749834652690,-478.0,0.00023835,4]
[365701791,1749834652715,-460.0,0.00023835,4]
[365701792,1749834652739,-151.0,0.00023835,7]
[365701793,1749834652766,-460.0,0.00023835,4]
[365701794,1749834652802,-192.134334,0.00023835,7]
[365701795,1749834652868,-192.134334,0.00023835,7]
[365701796,1749834652934,-1102.01,0.00023835,4]
[365701797,1749834652969,-808.18,0.00023835,4]
[365701798,1749834652980,-1805.7,0.00023835,4]
[365701799,1749834652990,-3963.42,0.00023835,4]
[365701800,1749834653000,-534.73,0.00023835,4]
[365701801,1749834653010,-151.0,0.00023835,7]
[365701802,1749834653020,-151.0,0.00023835,7]
[365701803,1749834653030,-1663.93,0.00023835,4]
[365701804,1749834653043,-460.0,0.00023835,4]
[365701805,1749834653052,-151.0,0.00023835,7]
[365701806,1749834653062,-151.0,0.00023835,7]
[365701807,1749834653072,-613.46,0.00023835,4]
[365701808,1749834653081,-2088.19,0.00023835,4]
[365701809,1749834653091,-742.14,0.00023844,3]
[365701810,1749834653101,-17127.57063857,0.00023865,2]
[365701811,1749834653110,-439.84863068,0.00023866,10]
[365701812,1749834653120,-155815.0,0.0002387,2]
[365701813,1749834653129,-151.0,0.0002387,7]
[365701814,1749834653138,-256.145566,0.0002387,7]
[365701815,1749834653148,-256.145566,0.0002387,7]
[365701816,1749834653157,-365.855373,0.0002387,7]